Workbook

Sheet ORÇAMENTO
A1: <---- NUMERAR SERVIÇOS PARA CPU | C1: Ministério do Desenvolvimento Regional
C2: Companhia de Desenvolvimento dos Vales do São Francisco e do Parnaíba
C3: 1ª Superintendência Regional
B5: OBRA: | C5: PAVIMENTAÇÃO ASFÁLTICA EM CBUQ E REDE DE ESGOTO URBANA - LOTEAMENTO NOVA CONQUISTA (MATUTINA / MG) - ITEM 1
B6: DATA: | C6: SETEMBRO / 2023 | G6: BDI Serviços: | I6: ='BDI SERV'!D31/100 -> 0.2149
B7: PRAZO DE EXECUÇÃO: 180 DIAS | G7: BDI Serviços: | I7: ='BDI FORN'!D31/100 -> 0.15
B8: ITEM | C8: DISCRIMINAÇÃO | D8: REFER. | E8: UNID. | F8: QUANT. | G8: P. UNITÁRIO | H8: P.UNIT.C/ BDI | I8: P. TOTAL
A9: A | B9: 1 | C9: SERVIÇOS PRELIMINARES | I9: =SUM(I10:I14) -> 191531.46
A10: 1 | B10: 1.1 | C10: MOBILIZAÇÃO E DESMOBILIZAÇÃO | D10: CPU.1 | E10: GL | F10: 1 | G10: =VLOOKUP(A10,CPU!$A$1:$N$4816,9) -> 13860.2 | H10: =VLOOKUP(A10,CPU!$A$1:$N$4816,10) -> 16838.76 | I10: =ROUND(F10*H10,2) -> 16838.76
A11: 2 | B11: 1.2 | C11: ADMINISTRAÇÃO LOCAL | D11: CPU.2 | E11: GL | F11: 1 | G11: =VLOOKUP(A11,CPU!$A$1:$N$4816,9) -> 125123.28 | H11: =VLOOKUP(A11,CPU!$A$1:$N$4816,10) -> 152012.27 | I11: =ROUND(F11*H11,2) -> 152012.27
A12: 3 | B12: 1.3 | C12: CANTEIRO DE OBRAS | D12: CPU.3 | E12: GL | F12: 1 | G12: =VLOOKUP(A12,CPU!$A$1:$N$4816,9) -> 13531.5 | H12: =VLOOKUP(A12,CPU!$A$1:$N$4816,10) -> 16439.42 | I12: =ROUND(F12*H12,2) -> 16439.42
A13: 4 | B13: 1.4 | C13: PLACA DE OBRA EM CHAPA DE AÇO GALVANIZADO | D13: 103689 | E13: M2 | F13: 3 | G13: =VLOOKUP(A13,CPU!$A$1:$N$4816,9) -> 340.5 | H13: =VLOOKUP(A13,CPU!$A$1:$N$4816,10) -> 413.67 | I13: =ROUND(F13*H13,2) -> 1241.01
A14: 5 | B14: 1.5 | C14: SERVIÇOS TOPOGRÁFICOS PARA PAVIMENTAÇÃO, INCLUSIVE NOTA DE SERVIÇO, ACOMPANHAMENTO E GREIDE | D14: 78472 | E14: M2 | F14: 12500 | G14: =VLOOKUP(A14,CPU!$A$1:$N$4816,9) -> 0.33 | H14: =VLOOKUP(A14,CPU!$A$1:$N$4816,10) -> 0.4 | I14: =ROUND(F14*H14,2) -> 5000
A15: B | B15: 2 | C15: PAVIMENTAÇÃO | I15: =SUM(I16:I22) -> 231125.5
A16: 6 | B16: 2.1 | C16: ESCAVAÇÃO HORIZONTAL EM SOLO DE 1A CATEGORIA | D16: 101116 | E16: M3 | F16: 5000 | G16: =VLOOKUP(A16,CPU!$A$1:$N$4816,9) -> 2.2 | H16: =VLOOKUP(A16,CPU!$A$1:$N$4816,10) -> 2.67 | I16: =ROUND(F16*H16,2) -> 13350
A17: 7 | B17: 2.2 | C17: CARGA, MANOBRA E DESCARGA DE SOLOS E MATERIAIS GRANULARES EM CAMINHÃO BASCULANTE | D17: 100976 | E17: M3 | F17: 5000 | G17: =VLOOKUP(A17,CPU!$A$1:$N$4816,9) -> 8.71 | H17: =VLOOKUP(A17,CPU!$A$1:$N$4816,10) -> 10.58 | I17: 52900
A18: 8 | B18: 2.3 | C18: REGULARIZAÇÃO E COMPACTAÇÃO DO SUBLEITO | D18: 100576 | E18: M2 | F18: 12500 | G18: =VLOOKUP(A18,CPU!$A$1:$N$4816,9) -> 2.57 | H18: =VLOOKUP(A18,CPU!$A$1:$N$4816,10) -> 3.12 | I18: 39000
A19: 9 | B19: 2.4 | C19: EXECUÇÃO E COMPACTAÇÃO DE BASE E OU SUB BASE PARA PAVIMENTAÇÃO DE SOLOS DE COMPORTAMENTO LATERÍTICO (ARENOSO) - EXCLUSIVE SOLO, ESCAVAÇÃO, CARGA E TRANSPORTE | D19: 96388 | E19: M3 | F19: 2500 | G19: =VLOOKUP(A19,CPU!$A$1:$N$4816,9) -> 12.47 | H19: =VLOOKUP(A19,CPU!$A$1:$N$4816,10) -> 15.15 | I19: 37875
A20: 10 | B20: 2.5 | C20: IMPRIMAÇÃO COM EMULSÃO ASFÁLTICA (EAI) | D20: 96401 | E20: M2 | F20: 12500 | G20: =VLOOKUP(A20,CPU!$A$1:$N$4816,9) -> 1.23 | H20: =VLOOKUP(A20,CPU!$A$1:$N$4816,10) -> 1.49 | I20: 18625
A21: 11 | B21: 2.6 | C21: PINTURA DE LIGAÇÃO COM EMULSÃO ASFÁLTICA RR-1C | D21: 96402 | E21: M2 | F21: 11600 | G21: =VLOOKUP(A21,CPU!$A$1:$N$4816,9) -> 1.01 | H21: =VLOOKUP(A21,CPU!$A$1:$N$4816,10) -> 1.23 | I21: 14268
A22: 12 | B22: 2.7 | C22: EXECUÇÃO DE PAVIMENTO COM APLICAÇÃO DE CONCRETO ASFÁLTICO USINADO A QUENTE (CBUQ), CAMADA DE ROLAMENTO - EXCLUSIVE TRANSPORTE | D22: 95995 | E22: M3 | F22: 350 | G22: =VLOOKUP(A22,CPU!$A$1:$N$4816,9) -> 129.6 | H22: =VLOOKUP(A22,CPU!$A$1:$N$4816,10) -> 157.45 | I22: 55107.5
A23: C | B23: 3 | C23: TRANSPORTE DE MATERIAIS | I23: =SUM(I24:I25) -> 64800
A24: 13 | B24: 3.1 | C24: TRANSPORTE COM CAMINHÃO BASCULANTE, EM VIA URBANA PAVIMENTADA | D24: 95427 | E24: M3XKM | F24: 69999.99625 | G24: =VLOOKUP(A24,CPU!$A$1:$N$4816,9) -> 0.73 | H24: =VLOOKUP(A24,CPU!$A$1:$N$4816,10) -> 0.89 | I24: =ROUND(F24*H24,2) -> 62300
A25: 14 | B25: 3.2 | C25: TRANSPORTE COM CAMINHÃO CARROCERIA 9T, EM VIA URBANA PAVIMENTADA | D25: 100947 | E25: TXKM | F25: 2000.000716 | G25: =VLOOKUP(A25,CPU!$A$1:$N$4816,9) -> 1.03 | H25: =VLOOKUP(A25,CPU!$A$1:$N$4816,10) -> 1.25 | I25: =ROUND(F25*H25,2) -> 2500
A26: D | B26: 4 | C26: TRANSPORTE DE MATERIAL ASFÁLTICO (BDI DIFERENCIADO) | I26: =SUM(I27:I28) -> 87240
A27: 15 | B27: 4.1 | C27: TRANSPORTE DE MASSA ASFÁLTICA COM CAMINHÃO BASCULANTE, EM VIA URBANA PAVIMENTADA (BDI DIFERENCIADO) | D27: 95430 | E27: TXKM | F27: 162000 | G27: =VLOOKUP(A27,CPU!$A$1:$N$4816,9) -> 0.45 | H27: =VLOOKUP(A27,CPU!$A$1:$N$4816,10) -> 0.52 | I27: =ROUND(F27*H27,2) -> 84240
A28: 16 | B28: 4.2 | C28: TRANSPORTE COM CAMINHÃO TANQUE DE TRANSPORTE DE MATERIAL ASFÁLTICO DE 30000 L, EM VIA URBANA PAVIMENTADA (BDI DIFERENCIADO) | D28: 102331 | E28: TXKM | F28: 5000 | G28: =VLOOKUP(A28,CPU!$A$1:$N$4816,9) -> 0.52 | H28: =VLOOKUP(A28,CPU!$A$1:$N$4816,10) -> 0.6 | I28: =ROUND(F28*H28,2) -> 3000
A29: E | B29: 5 | C29: DRENAGEM E OBRAS COMPLEMENTARES | I29: =SUM(I30:I42) -> 818703.4
A30: 17 | B30: 5.1 | C30: GUIA (MEIO-FIO) E SARJETA CONJUGADOS DE CONCRETO, MOLDADA IN LOCO EM M CR 57,38 TRECHO RETO COM EXTRUSORA, 45 CM BASE (15 CM BASE DA GUIA + 30 CM BAS E DA SARJETA) X 22 CM ALTURA | D30: 94267 | E30: M | F30: 2900 | G30: =VLOOKUP(A30,CPU!$A$1:$N$4816,9) -> 57.32 | H30: =VLOOKUP(A30,CPU!$A$1:$N$4816,10) -> 69.64 | I30: =ROUND(F30*H30,2) -> 201956
A31: 17.1 | B31: 5.2 | C31: LOCAÇÃO DE REDE DE DRENAGEM OU ESGOTO, INCLUSIVE ELABORAÇÃO DE NOTA DE SERVIÇO | D31: 99063 | E31: M | F31: 1700 | G31: =VLOOKUP(A31,CPU!$A$1:$N$4816,9) -> 5.95 | H31: =VLOOKUP(A31,CPU!$A$1:$N$4816,10) -> 7.23 | I31: 12291
A32: 17.2 | B32: 5.3 | C32: ESCAVAÇÃO MECANIZADA DE VALA COM PROF. ATÉ 1,5 M, EM SOLO DE 1A CATEGORIA | D32: 90091 | E32: M3 | F32: 1530 | G32: =VLOOKUP(A32,CPU!$A$1:$N$4816,9) -> 6.5 | H32: =VLOOKUP(A32,CPU!$A$1:$N$4816,10) -> 7.9 | I32: 12087
A33: 17.3 | B33: 5.4 | C33: REGULARIZACAO E APILOAMENTO DE FUNDO DE VALAS (ACERTO DE SOLO NATURAL) | D33: 101616 | E33: M2 | F33: 1530 | G33: =VLOOKUP(A33,CPU!$A$1:$N$4816,9) -> 6.07 | H33: =VLOOKUP(A33,CPU!$A$1:$N$4816,10) -> 7.37 | I33: 11276.1
A34: 17.4 | B34: 5.5 | C34: ESCORAMENTO DE VALA, TIPO PONTALETEAMENTO, COM PROFUNDIDADE ATÉ 1,50M | D34: 101570 | E34: M2 | F34: 3400 | G34: =VLOOKUP(A34,CPU!$A$1:$N$4816,9) -> 26.27 | H34: =VLOOKUP(A34,CPU!$A$1:$N$4816,10) -> 31.92 | I34: 108528
A35: 17.7 | B35: 5.6 | C35: FORNECIMENTO E ASSENTAMENTO DE TUBO DE PVC PARA REDE COLETORA DE ESGOTO, DN 150 MM, JUNTA ELÁSTICA | D35: 90695 | E35: M | F35: 1700 | G35: =VLOOKUP(A35,CPU!$A$1:$N$4816,9) -> 92.59 | H35: =VLOOKUP(A35,CPU!$A$1:$N$4816,10) -> 112.49 | I35: 191233
A36: 17.75 | B36: 5.7 | C36: LIGAÇÃO PREDIAL DE ESGOTO, REDE DN 150 MM, COLETOR PREDIAL DN 100 MM, L = 6,0 M, COM SELIM E CURVA 90 GRAUS, INCLUSIVE POÇO LUMINAR | D36: 104136a | E36: UNID | F36: 128 | G36: =VLOOKUP(A36,CPU!$A$1:$N$4816,9) -> 724.13 | H36: =VLOOKUP(A36,CPU!$A$1:$N$4816,10) -> 879.75 | I36: =ROUND(F36*H36,2) -> 112608
A37: 17.8 | B37: 5.8 | C37: POÇO DE VISITA CIRCULAR PARA ESGOTO, EM CONCRETO PRÉ-MOLDADO, DIÂMETRO INTERNO = 0,80 M, PROFUNDIDADE = 1,00 M, INCLUSIVE TAMPÃO | D37: 97978a | E37: UNID | F37: 35 | G37: =VLOOKUP(A37,CPU!$A$1:$N$4816,9) -> 1469.91 | H37: =VLOOKUP(A37,CPU!$A$1:$N$4816,10) -> 1785.79 | I37: =ROUND(F37*H37,2) -> 62502.65
A38: 17.9 | B38: 5.9 | C38: ATERRO MANUAL DE VALAS COM SOLO E COMPACTAÇÃO MECANIZADA | D38: 94319 | E38: M3 | F38: 1530 | G38: =VLOOKUP(A38,CPU!$A$1:$N$4816,9) -> 25.17 | H38: =VLOOKUP(A38,CPU!$A$1:$N$4816,10) -> 30.58 | I38: 46787.4
A39: 18 | B39: 5.10 | C39: FORNECIMENTO E INSTALAÇÃO DE PLACA DE SINALIZAÇÃO VIÁRIA - REGULAMENTAÇÃO CIRCULAR | D39: CPU.4 | E39: UN. | F39: 0 | G39: =VLOOKUP(A39,CPU!$A$1:$N$4816,9) -> 422.8 | H39: =VLOOKUP(A39,CPU!$A$1:$N$4816,10) -> 513.66 | I39: 0
A40: 19 | B40: 5.11 | C40: FORNECIMENTO E INSTALAÇÃO DE PLACA DE SINALIZAÇÃO VIÁRIA - REGULAMENTAÇÃO (PARE) | D40: CPU.5 | E40: UN. | F40: 25 | G40: =VLOOKUP(A40,CPU!$A$1:$N$4816,9) -> 482.72 | H40: =VLOOKUP(A40,CPU!$A$1:$N$4816,10) -> 586.46 | I40: 14661.5
A41: 20 | B41: 5.12 | C41: FORNECIMENTO E INSTALAÇÃO DE PLACA DE AÇO PARA IDENTIFICACAO DE RUA, *45 CM X 20* CM, INCLUSIVE SUPORTE EM TUBO DE AÇO GALVANIZADO (02 PLACAS POR SUPORTE) | D41: CPU.6 | E41: UN. | F41: 25 | G41: =VLOOKUP(A41,CPU!$A$1:$N$4816,9) -> 375.43 | H41: =VLOOKUP(A41,CPU!$A$1:$N$4816,10) -> 456.11 | I41: 11402.75
A42: 21 | B42: 5.13 | C42: PINTURA DE EIXO VIÁRIO SOBRE ASFALTO COM TINTA RETRORREFLETIVA A BASE DE RESINA ACRÍLICA COM MICROESFERAS DE VIDRO, APLICAÇÃO MECÂNICA COM DEMARCADORA AUTOPROPELIDA | D42: 102512 | E42: M2 | F42: 4700 | G42: =VLOOKUP(A42,CPU!$A$1:$N$4816,9) -> 5.84 | H42: =VLOOKUP(A42,CPU!$A$1:$N$4816,10) -> 7.1 | I42: 33370
A43: F | B43: 6 | C43: FORNECIMENTOS - MATERIAL ASFÁLTICO (BDI DIFERENCIADO) | I43: =SUM(I44:I46) -> 670004.65
A44: 25 | B44: 6.1 | C44: AQUISIÇÃO DE EMULSÃO ASFÁLTICA PARA IMPRIMAÇÃO (EAI) - EXCLUSIVE TRANSPORTE | D44: CPU.7 | E44: T | F44: 17 | G44: =VLOOKUP(A44,CPU!$A$1:$N$4816,9) -> 2689.76 | H44: =VLOOKUP(A44,CPU!$A$1:$N$4816,10) -> 3093.22 | I44: =ROUND(F44*H44,2) -> 52584.74
A45: 26 | B45: 6.2 | C45: AQUISIÇÃO DE EMULSAO ASFALTICA CATIONICA RR-1C - EXCLUSIVE TRANSPORTE | D45: CPU.8 | E45: T | F45: 5.5 | G45: =VLOOKUP(A45,CPU!$A$1:$N$4816,9) -> 2706.7 | H45: =VLOOKUP(A45,CPU!$A$1:$N$4816,10) -> 3112.71 | I45: =ROUND(F45*H45,2) -> 17119.91
A46: 27 | B46: 6.3 | C46: AQUISIÇÃO DE CONCRETO BETUMINOSO USINADO A QUENTE (CBUQ) PARA PAVIMENTACAO ASFALTICA, PADRAO DNIT, FAIXA C, COM CAP 50/70 - EXCLUSIVE TRANSPORTE | D46: CPU.9 | E46: T | F46: 900 | G46: =VLOOKUP(A46,CPU!$A$1:$N$4816,9) -> 580 | H46: =VLOOKUP(A46,CPU!$A$1:$N$4816,10) -> 667 | I46: =ROUND(F46*H46,2) -> 600300
B47: TOTAL GERAL DA OBRA COM BDI | I47: =SUM(I9,I15,I23,I29,I43,I26) -> 2063405.01

Sheet CPU
A1: 1 | B1: CODEVASF | E1: COMPOSIÇÃO DE PREÇO UNITÁRIO | I1: =H11 -> 13860.2 | J1: =H13 -> 16838.76 | K1: BDI CALCULADO: | M1: =ORÇAMENTO!I6 -> 0.2149
B2: OBRA: | C2: =ORÇAMENTO!C5 -> PAVIMENTAÇÃO ASFÁLTICA EM CBUQ E REDE DE ESGOTO URBANA - LOTEAMENTO NOVA CONQUISTA (MATUTINA / MG) - ITEM 1 | G2: DATA: | H2: =ORÇAMENTO!C6 -> SETEMBRO / 2023 | K2: BDI DIFERENCIADO: | M2: ='BDI FORN'!D31/100 -> 0.15
B3: SERVIÇO: | C3: =VLOOKUP(A1,ORÇAMENTO!A10:I30,3) -> MOBILIZAÇÃO E DESMOBILIZAÇÃO | E3: Referência: | F3: =VLOOKUP(A1,ORÇAMENTO!$A$10:$I$30,4) -> CPU.1 | G3: UNIDADE: | H3: =VLOOKUP(A1,ORÇAMENTO!A10:I30,5) -> GL
B5: TIPO ITEM | C5: CODIGO ITEM | D5: DESCRIÇÃO ITEM | E5: UNIDADE ITEM | F5: COEFICIENTE | G5: PRECO UNITARIO | H5: CUSTO TOTAL
B6: COMPOSICAO | C6: 89876 | D6: CAMINHÃO BASCULANTE 14 M3, COM CAVALO MECÂNICO DE CAPACIDADE MÁXIMA DE TRAÇÃO COMBINADO DE 36000 KG, POTÊNCIA 286 CV, INCLUSIVE SEMIREBOQUE COM CAÇAMBA METÁLICA | E6: CHP DIURNO. | F6: 8 | G6: 316.13 | H6: =ROUNDDOWN(F6*G6,2) -> 2529.04
B7: COMPOSICAO | C7: 89877 | D7: CAMINHÃO BASCULANTE 14 M3, COM CAVALO MECÂNICO DE CAPACIDADE MÁXIMA DE TRAÇÃO COMBINADO DE 36000 KG, POTÊNCIA 286 CV, INCLUSIVE SEMIREBOQUE COM CAÇAMBA METÁLICA | E7: CHI DIURNO. | F7: 8 | G7: 89.75 | H7: =ROUNDDOWN(F7*G7,2) -> 718
B8: COMPOSICAO | C8: 5914640 | D8: TRANSPORTE COM CAVALO MECÂNICO COM SEMIRREBOQUE COM CAPACIDADE DE 30 T - RODOVIA PAVIMENTADA | E8: T.KM | F8: 5805 | G8: 0.58 | H8: =ROUNDDOWN(F8*G8,2) -> 3366.9
B9: COMPOSIÇÃO | C9: 88316 | D9: SERVENTE COM ENCARGOS COMPLEMENTARES | E9: H | F9: 16 | G9: 19.76 | H9: =ROUNDDOWN(F9*G9,2) -> 316.16
B10: PRODUÇÃO DA EQUIPE | E10: 0.5 | F10: CUSTO | H10: =SUM(H6:H9) -> 6930.1
B11: TOTAL | H11: =H10/E10 -> 13860.2 | I11: OK
B12: BDI % | H12: =1+$M$1 -> 1.2149
B13: TOTAL DO SERVIÇO - R$ | H13: =ROUND(H11*H12,2) -> 16838.76
A15: =A1+1 -> 2 | B15: CODEVASF | E15: COMPOSIÇÃO DE PREÇO UNITÁRIO | I15: =H29 -> 125123.28 | J15: =H31 -> 152012.27
B16: OBRA: | C16: =$C$2 -> PAVIMENTAÇÃO ASFÁLTICA EM CBUQ E REDE DE ESGOTO URBANA - LOTEAMENTO NOVA CONQUISTA (MATUTINA / MG) - ITEM 1 | G16: DATA: | H16: =$H$2 -> SETEMBRO / 2023
B17: SERVIÇO: | C17: =VLOOKUP(A15,ORÇAMENTO!$A$10:$I$30,3) -> ADMINISTRAÇÃO LOCAL | E17: SINAPI | F17: =VLOOKUP(A15,ORÇAMENTO!$A$10:$I$30,4) -> CPU.2 | G17: UNIDADE: | H17: =VLOOKUP(A15,ORÇAMENTO!$A$10:$I$30,5) -> GL
B19: TIPO ITEM | C19: CODIGO ITEM | D19: DESCRIÇÃO ITEM | E19: UNIDADE ITEM | F19: COEFICIENTE | G19: PRECO UNITARIO | H19: CUSTO TOTAL
B20: INSUMO | C20: 14250 | D20: ENERGIA ELÉTRICA | E20: kwh | F20: 60 | G20: 0.94 | H20: =ROUNDDOWN(F20*G20,2) -> 56.4
B21: INSUMO | C21: 44480 | D21: TARIFA "A" - ÁGUA/ESGOTO | E21: m³ | F21: 6 | G21: 17.78 | H21: 106.68
B22: COTAÇÃO | C22: MERC. | D22: TELEFONE (PLANO CONTROLE) | E22: UNID | F22: 2 | G22: 59.9 | H22: 119.8
B23: INSUMO | C23: ED-50155 SEINFRA | D23: BANHEIRO QUÍMICO 110 X 120 X 230 CM COM MANUTENÇÃO (CONSIDERANDO OBRAS SIMULTÂNEAS) | E23: MÊS | F23: 2 | G23: 820 | H23: 1640
B24: COMPOSICAO | C24: 90777 | D24: Engenheiro Civil Júnior com encargos complementares | E24: H | F24: 55 | G24: 114.12 | H24: 6276.6
B25: COMPOSICAO | C25: 90776 | D25: Encarregado Geral com encargos complementares | E25: H | F25: 110 | G25: 57.73 | H25: 6350.3
B26: COMPOSICAO | C26: 88321 | D26: Tecnico de Laboratório com encargos complementares | E26: H | F26: 110 | G26: 45.45 | H26: 4999.5
B27: COMPOSICAO | C27: 90772 | D27: Auxiliar de escritório com encargos complementares | E27: H | F27: 55 | G27: 23.72 | H27: 1304.6
B28: PRODUÇÃO DA EQUIPE | E28: =1/6 -> 0.1666666667 | F28: CUSTO | H28: =SUM(H20:H27) -> 20853.88
B29: TOTAL | H29: =ROUND(H28/E28,2) -> 125123.28 | I29: OK
B30: BDI % | H30: =1+$M$1 -> 1.2149
B31: TOTAL DO SERVIÇO - R$ | H31: =ROUND(H29*H30,2) -> 152012.27
A33: =A15+1 -> 3 | B33: CODEVASF | E33: COMPOSIÇÃO DE PREÇO UNITÁRIO | I33: =H43 -> 13531.5 | J33: =H45 -> 16439.42
B34: OBRA: | C34: =$C$2 -> PAVIMENTAÇÃO ASFÁLTICA EM CBUQ E REDE DE ESGOTO URBANA - LOTEAMENTO NOVA CONQUISTA (MATUTINA / MG) - ITEM 1 | G34: DATA: | H34: =$H$2 -> SETEMBRO / 2023
B35: SERVIÇO: | C35: =VLOOKUP(A33,ORÇAMENTO!$A$10:$I$30,3) -> CANTEIRO DE OBRAS | E35: SINAPI | F35: =VLOOKUP(A33,ORÇAMENTO!$A$10:$I$30,4) -> CPU.3 | G35: UNIDADE: | H35: =VLOOKUP(A33,ORÇAMENTO!$A$10:$I$30,5) -> GL
B37: TIPO ITEM | C37: CODIGO ITEM | D37: DESCRIÇÃO ITEM | E37: UNIDADE ITEM | F37: COEFICIENTE | G37: PRECO UNITARIO | H37: CUSTO TOTAL
B38: INSUMO | C38: 10775 | D38: LOCACAO DE CONTAINER 2,30 X 6,00 M, ALT. 2,50 M, COM 1 SANITARIO, PARA ESCRITORIO, COMPLETO, SEM DIVISORIAS INTERNAS | E38: MÊS | F38: 6 | G38: 975 | H38: =ROUNDDOWN(F38*G38,2) -> 5850
B39: INSUMO | C39: 10779 | D39: LOCACAO DE CONTAINER 2,30 X 4,30 M, ALT. 2,50 M, P/ SANITARIO, C/ 5 BACIAS, 1 LAVATORIO E 4 MICTORIOS | E39: MÊS | F39: 6 | G39: 1218.75 | H39: =ROUNDDOWN(F39*G39,2) -> 7312.5
B40: INSUMO | C40: 37525 | D40: TELA PLASTICA TECIDA LISTRADA BRANCA E LARANJA, TIPO GUARDA CORPO, EM POLIETILENO MONOFILADO, ROLO 1,20 X 50 M (L X C) | E40: M | F40: 100 | G40: 3.69 | H40: =ROUNDDOWN(F40*G40,2) -> 369
H41: =ROUNDDOWN(F41*G41,2) -> 0
B42: PRODUÇÃO DA EQUIPE | E42: 1 | F42: CUSTO | H42: =SUM(H38:H41) -> 13531.5
B43: TOTAL | H43: =H42/E42 -> 13531.5 | I43: OK
B44: BDI % | H44: =1+$M$1 -> 1.2149
B45: TOTAL DO SERVIÇO - R$ | H45: =ROUND(H43*H44,2) -> 16439.42
A47: =A33+1 -> 4 | B47: CODEVASF | E47: COMPOSIÇÃO DE PREÇO UNITÁRIO | I47: =H61 -> 340.5 | J47: =H63 -> 413.67
B48: OBRA: | C48: =$C$2 -> PAVIMENTAÇÃO ASFÁLTICA EM CBUQ E REDE DE ESGOTO URBANA - LOTEAMENTO NOVA CONQUISTA (MATUTINA / MG) - ITEM 1 | G48: DATA: | H48: =$H$2 -> SETEMBRO / 2023
B49: SERVIÇO: | C49: =VLOOKUP(A47,ORÇAMENTO!$A$10:$I$30,3) -> PLACA DE OBRA EM CHAPA DE AÇO GALVANIZADO | E49: SINAPI | F49: =VLOOKUP(A47,ORÇAMENTO!$A$10:$I$30,4) -> 103689 | G49: UNIDADE: | H49: =VLOOKUP(A47,ORÇAMENTO!$A$10:$I$30,5) -> M2
B51: TIPO ITEM | C51: CODIGO ITEM | D51: DESCRIÇÃO ITEM | E51: UNIDADE ITEM | F51: COEFICIENTE | G51: PRECO UNITARIO | H51: CUSTO TOTAL
B52: INSUMO | C52: 4509 | D52: SARRAFO *2,5 X 10* CM EM PINUS, MISTA OU EQUIVALENTE DA REGIAO - BRUTA | E52: M | F52: 3,2083000 | G52: 4,41 | H52: =ROUNDDOWN(F52*G52,2) -> 14.14
B53: INSUMO | C53: 4813 | D53: PLACA DE OBRA (PARA CONSTRUCAO CIVIL) EM CHAPA GALVANIZADA *N. 22*, ADESIVADA, DE *2,4 X 1,2* M (SEM POSTES PARA FIXACAO) | E53: M2 | F53: 1,0000000 | G53: 250,00 | H53: 250
B54: INSUMO | C54: 5065 | D54: PREGO DE ACO POLIDO COM CABECA 10 X 10 (7/8 X 17) | E54: KG | F54: 0,0113000 | G54: 36,57 | H54: 0.41
B55: INSUMO | C55: 5069 | D55: PREGO DE ACO POLIDO COM CABECA 17 X 27 (2 1/2 X 11) | E55: KG | F55: 0,0132000 | G55: 19,59 | H55: 0.25
B56: COMPOSICAO | C56: 88262 | D56: CARPINTEIRO DE FORMAS COM ENCARGOS COMPLEMENTARES | E56: H | F56: 0,3729000 | G56: 27,05 | H56: 10.08
B57: COMPOSICAO | C57: 88316 | D57: SERVENTE COM ENCARGOS COMPLEMENTARES | E57: H | F57: 1,1186000 | G57: 19,76 | H57: 22.1
B58: INSUMO | C58: 4115 | D58: MADEIRA ROLICA TRATADA, D = 12 A 15 CM, H = 3,00 M, EM EUCALIPTO OU EQUIVALENTE | E58: M | F58: 2 | G58: 21.76 | H58: 43.52
H59: 0
B60: PRODUÇÃO DA EQUIPE | E60: 1 | F60: CUSTO | H60: =SUM(H52:H59) -> 340.5
B61: TOTAL | H61: =H60/E60 -> 340.5 | I61: OK
B62: BDI % | H62: =1+$M$1 -> 1.2149
B63: TOTAL DO SERVIÇO - R$ | H63: =ROUND(H61*H62,2) -> 413.67
A65: =A47+1 -> 5 | B65: CODEVASF | E65: COMPOSIÇÃO DE PREÇO UNITÁRIO | I65: =H77 -> 0.33 | J65: =H79 -> 0.4
B66: OBRA: | C66: =$C$2 -> PAVIMENTAÇÃO ASFÁLTICA EM CBUQ E REDE DE ESGOTO URBANA - LOTEAMENTO NOVA CONQUISTA (MATUTINA / MG) - ITEM 1 | G66: DATA: | H66: =$H$2 -> SETEMBRO / 2023
B67: SERVIÇO: | C67: =VLOOKUP(A65,ORÇAMENTO!$A$10:$I$30,3) -> SERVIÇOS TOPOGRÁFICOS PARA PAVIMENTAÇÃO, INCLUSIVE NOTA DE SERVIÇO, ACOMPANHAMENTO E GREIDE | E67: SINAPI | F67: =VLOOKUP(A65,ORÇAMENTO!$A$10:$I$30,4) -> 78472 | G67: UNIDADE: | H67: =VLOOKUP(A65,ORÇAMENTO!$A$10:$I$30,5) -> M2
B69: TIPO ITEM | C69: CODIGO ITEM | D69: DESCRIÇÃO ITEM | E69: UNIDADE ITEM | F69: COEFICIENTE | G69: PRECO UNITARIO | H69: CUSTO TOTAL
B70: COMPOSICAO | C70: 88253 | D70: AUXILIAR DE TOPÓGRAFO COM ENCARGOS COMPLEMENTARES | E70: H | F70: 0.0025 | G70: 21.57 | H70: =ROUNDDOWN(F70*G70,2) -> 0.05
B71: COMPOSICAO | C71: 88288 | D71: NIVELADOR COM ENCARGOS COMPLEMENTARES | E71: H | F71: 0.0025 | G71: 26.99 | H71: 0.06
B72: COMPOSICAO | C72: 88316 | D72: SERVENTE COM ENCARGOS COMPLEMENTARES | E72: H | F72: 0.0075 | G72: 19.76 | H72: 0.14
B73: COMPOSICAO | C73: 88597 | D73: DESENHISTA DETALHISTA COM ENCARGOS COMPLEMENTARES | E73: H | F73: 0.002 | G73: 29.72 | H73: 0.05
B74: COMPOSICAO | C74: 92145 | D74: CAMINHONETE CABINE SIMPLES COM MOTOR 1.6 FLEX, CÂMBIO MANUAL, POTÊNCIA 101/104 CV, 2 PORTAS | E74: CHP | F74: 0.0005 | G74: 74.75 | H74: 0.03
H75: 0
B76: PRODUÇÃO DA EQUIPE | E76: 1 | F76: CUSTO | H76: =SUM(H70:H75) -> 0.33
B77: TOTAL | H77: =H76/E76 -> 0.33 | I77: OK
B78: BDI % | H78: =1+$M$1 -> 1.2149
B79: TOTAL DO SERVIÇO - R$ | H79: =ROUND(H77*H78,2) -> 0.4
A81: =A65+1 -> 6 | B81: CODEVASF | E81: COMPOSIÇÃO DE PREÇO UNITÁRIO | I81: =H90 -> 2.2 | J81: =H92 -> 2.67
B82: OBRA: | C82: =$C$2 -> PAVIMENTAÇÃO ASFÁLTICA EM CBUQ E REDE DE ESGOTO URBANA - LOTEAMENTO NOVA CONQUISTA (MATUTINA / MG) - ITEM 1 | G82: DATA: | H82: =$H$2 -> SETEMBRO / 2023
B83: SERVIÇO: | C83: =VLOOKUP(A81,ORÇAMENTO!$A$10:$I$30,3) -> ESCAVAÇÃO HORIZONTAL EM SOLO DE 1A CATEGORIA | E83: SINAPI | F83: =VLOOKUP(A81,ORÇAMENTO!$A$10:$I$30,4) -> 101116 | G83: UNIDADE: | H83: =VLOOKUP(A81,ORÇAMENTO!$A$10:$I$30,5) -> M3
B85: TIPO ITEM | C85: CODIGO ITEM | D85: DESCRIÇÃO ITEM | E85: UNIDADE ITEM | F85: COEFICIENTE | G85: PRECO UNITARIO | H85: CUSTO TOTAL
B86: COMPOSICAO | C86: 5847 | D86: TRATOR DE ESTEIRAS, POTÊNCIA 170 HP, PESO OPERACIONAL 19 T, CAÇAMBA 5,2 M3 | E86: CHP | F86: 0,0048000 | G86: 253,93 | H86: =ROUNDDOWN(F86*G86,2) -> 1.21
B87: COMPOSICAO | C87: 5849 | D87: TRATOR DE ESTEIRAS, POTÊNCIA 170 HP, PESO OPERACIONAL 19 T, CAÇAMBA 5,2 M3 | E87: CHI | F87: 0,0082000 | G87: 90,40 | H87: =ROUNDDOWN(F87*G87,2) -> 0.74
B88: COMPOSICAO | C88: 88316 | D88: SERVENTE COM ENCARGOS COMPLEMENTARES | E88: H | F88: 0,0131000 | G88: 19,76 | H88: =ROUNDDOWN(F88*G88,2) -> 0.25
B89: PRODUÇÃO DA EQUIPE | E89: 1 | F89: CUSTO | H89: =SUM(H86:H88) -> 2.2
B90: TOTAL | H90: =H89/E89 -> 2.2 | I90: OK
B91: BDI % | H91: =1+$M$1 -> 1.2149
B92: TOTAL DO SERVIÇO - R$ | H92: =ROUND(H90*H91,2) -> 2.67
A94: 7 | B94: CODEVASF | E94: COMPOSIÇÃO DE PREÇO UNITÁRIO | I94: =H104 -> 8.71 | J94: =H106 -> 10.58
B95: OBRA: | C95: =$C$2 -> PAVIMENTAÇÃO ASFÁLTICA EM CBUQ E REDE DE ESGOTO URBANA - LOTEAMENTO NOVA CONQUISTA (MATUTINA / MG) - ITEM 1 | G95: DATA: | H95: =$H$2 -> SETEMBRO / 2023
B96: SERVIÇO: | C96: =VLOOKUP(A94,ORÇAMENTO!$A$10:$I$30,3) -> CARGA, MANOBRA E DESCARGA DE SOLOS E MATERIAIS GRANULARES EM CAMINHÃO BASCULANTE | E96: SINAPI | F96: =VLOOKUP(A94,ORÇAMENTO!$A$10:$I$30,4) -> 100976 | G96: UNIDADE: | H96: =VLOOKUP(A94,ORÇAMENTO!$A$10:$I$30,5) -> M3
B98: TIPO ITEM | C98: CODIGO ITEM | D98: DESCRIÇÃO ITEM | E98: UNIDADE ITEM | F98: COEFICIENTE | G98: PRECO UNITARIO | H98: CUSTO TOTAL
B99: COMPOSICAO | C99: 5940 | D99: PÁ CARREGADEIRA SOBRE RODAS, POTÊNCIA LÍQUIDA 128 HP, CAPACIDADE DA CAÇAMBA 1,7 A 2,8 M3, PESO OPERACIONAL 11632 KG | E99: CHP | F99: 0,0083000 | G99: 217,72 | H99: =ROUNDDOWN(F99*G99,2) -> 1.8
B100: COMPOSICAO | C100: 5942 | D100: PÁ CARREGADEIRA SOBRE RODAS, POTÊNCIA LÍQUIDA 128 HP, CAPACIDADE DA CAÇAMBA 1,7 A 2,8 M3, PESO OPERACIONAL 11632 KG | E100: CHI | F100: 0,0074000 | G100: 95,85 | H100: =ROUNDDOWN(F100*G100,2) -> 0.7
B101: COMPOSICAO | C101: 89883 | D101: CAMINHÃO BASCULANTE 18 M3, COM CAVALO MECÂNICO DE CAPACIDADE MÁXIMA DE TRAÇÃO COMBINADO DE 45000 KG, POTÊNCIA 330 CV, INCLUSIVE SEMIREBOQUE COM CAÇAMBA METÁLICA | E101: CHP | F101: 0,0153000 | G101: 348,45 | H101: =ROUNDDOWN(F101*G101,2) -> 5.33
B102: COMPOSICAO | C102: 89884 | D102: CAMINHÃO BASCULANTE 18 M3, COM CAVALO MECÂNICO DE CAPACIDADE MÁXIMA DE TRAÇÃO COMBINADO DE 45000 KG, POTÊNCIA 330 CV, INCLUSIVE SEMIREBOQUE COM CAÇAMBA METÁLICA | E102: CHI | F102: 0,0095000 | G102: 93,65 | H102: =ROUNDDOWN(F102*G102,2) -> 0.88
B103: PRODUÇÃO DA EQUIPE | E103: 1 | F103: CUSTO | H103: =SUM(H99:H102) -> 8.71
B104: TOTAL | H104: =H103/E103 -> 8.71 | I104: OK
B105: BDI % | H105: =1+$M$1 -> 1.2149
B106: TOTAL DO SERVIÇO - R$ | H106: =ROUND(H104*H105,2) -> 10.58
A108: 8 | B108: CODEVASF | E108: COMPOSIÇÃO DE PREÇO UNITÁRIO | I108: =H122 -> 2.57 | J108: =H124 -> 3.12
B109: OBRA: | C109: =$C$2 -> PAVIMENTAÇÃO ASFÁLTICA EM CBUQ E REDE DE ESGOTO URBANA - LOTEAMENTO NOVA CONQUISTA (MATUTINA / MG) - ITEM 1 | G109: DATA: | H109: =$H$2 -> SETEMBRO / 2023
B110: SERVIÇO: | C110: =VLOOKUP(A108,ORÇAMENTO!$A$10:$I$30,3) -> REGULARIZAÇÃO E COMPACTAÇÃO DO SUBLEITO | E110: SICRO | F110: =VLOOKUP(A108,ORÇAMENTO!$A$10:$I$30,4) -> 100576 | G110: UNIDADE: | H110: M2
B112: TIPO ITEM | C112: CODIGO ITEM | D112: DESCRIÇÃO ITEM | E112: UNIDADE ITEM | F112: COEFICIENTE | G112: PRECO UNITARIO | H112: CUSTO TOTAL
B113: COMPOSICAO | C113: 5901 | D113: CAMINHÃO PIPA 10.000 L TRUCADO, PESO BRUTO TOTAL 23.000 KG, CARGA ÚTIL MÁXIMA 15.935 KG, DISTÂNCIA ENTRE EIXOS 4,8 M, POTÊNCIA 230 CV, INCLUSIVE TANQUE DE AÇO PARA TRANSPORTE DE ÁGUA | E113: CHP | F113: 0,0010000 | G113: 294,94 | H113: =ROUNDDOWN(F113*G113,2) -> 0.29
B114: COMPOSICAO | C114: 5903 | D114: CAMINHÃO PIPA 10.000 L TRUCADO, PESO BRUTO TOTAL 23.000 KG, CARGA ÚTIL MÁXIMA 15.935 KG, DISTÂNCIA ENTRE EIXOS 4,8 M, POTÊNCIA 230 CV, INCLUSIVE TANQUE DE AÇO PARA TRANSPORTE DE ÁGUA | E114: CHI | F114: 0,0070000 | G114: 72,55 | H114: 0.5
B115: COMPOSICAO | C115: 5932 | D115: MOTONIVELADORA POTÊNCIA BÁSICA LÍQUIDA (PRIMEIRA MARCHA) 125 HP, PESO BRUTO 13032 KG, LARGURA DA LÂMINA DE 3,7 M | E115: CHP | F115: 0,0001000 | G115: 262,71 | H115: 0.02
B116: COMPOSICAO | C116: 5934 | D116: MOTONIVELADORA POTÊNCIA BÁSICA LÍQUIDA (PRIMEIRA MARCHA) 125 HP, PESO BRUTO 13032 KG, LARGURA DA LÂMINA DE 3,7 M | E116: CHI | F116: 0,0080000 | G116: 109,40 | H116: 0.87
B117: COMPOSICAO | C117: 73436 | D117: ROLO COMPACTADOR VIBRATÓRIO PÉ DE CARNEIRO PARA SOLOS, POTÊNCIA 80 HP, PESO OPERACIONAL SEM/COM LASTRO 7,4 / 8,8 T, LARGURA DE TRABALHO 1,68 M | E117: CHP | F117: 0,0020000 | G117: 163,19 | H117: 0.32
B118: COMPOSICAO | C118: 88316 | D118: SERVENTE COM ENCARGOS COMPLEMENTARES | E118: H | F118: 0,0080000 | G118: 19,76 | H118: 0.15
B119: COMPOSICAO | C119: 93244 | D119: ROLO COMPACTADOR VIBRATÓRIO PÉ DE CARNEIRO PARA SOLOS, POTÊNCIA 80 HP, PESO OPERACIONAL SEM/COM LASTRO 7,4 / 8,8 T, LARGURA DE TRABALHO 1,68 M | E119: CHI | F119: 0,0060000 | G119: 71,18 | H119: 0.42
B121: PRODUÇÃO DA EQUIPE | E121: 1 | F121: CUSTO | H121: =SUM(H113:H120) -> 2.57
B122: TOTAL | H122: =H121/E121 -> 2.57 | I122: OK
B123: BDI % | H123: =1+$M$1 -> 1.2149
B124: TOTAL DO SERVIÇO - R$ | H124: =ROUND(H122*H123,2) -> 3.12
A126: 9 | B126: CODEVASF | E126: COMPOSIÇÃO DE PREÇO UNITÁRIO | I126: =H142 -> 12.47 | J126: =H144 -> 15.15
B127: OBRA: | C127: =$C$2 -> PAVIMENTAÇÃO ASFÁLTICA EM CBUQ E REDE DE ESGOTO URBANA - LOTEAMENTO NOVA CONQUISTA (MATUTINA / MG) - ITEM 1 | G127: DATA: | H127: =$H$2 -> SETEMBRO / 2023
B128: SERVIÇO: | C128: =VLOOKUP(A126,ORÇAMENTO!$A$10:$I$30,3) -> EXECUÇÃO E COMPACTAÇÃO DE BASE E OU SUB BASE PARA PAVIMENTAÇÃO DE SOLOS DE COMPORTAMENTO LATERÍTICO (ARENOSO) - EXCLUSIVE SOLO, ESCAVAÇÃO, CARGA E TRANSPORTE | E128: SINAPI | F128: =VLOOKUP(A126,ORÇAMENTO!$A$10:$I$30,4) -> 96388 | G128: UNIDADE: | H128: =VLOOKUP(A126,ORÇAMENTO!$A$10:$I$30,5) -> M3
B130: TIPO ITEM | C130: CODIGO ITEM | D130: DESCRIÇÃO ITEM | E130: UNIDADE ITEM | F130: COEFICIENTE | G130: PRECO UNITARIO | H130: CUSTO TOTAL
B131: COMPOSICAO | C131: 5684 | D131: ROLO COMPACTADOR VIBRATÓRIO DE UM CILINDRO AÇO LISO, POTÊNCIA 80 HP, PESO OPERACIONAL MÁXIMO 8,1 T, IMPACTO DINÂMICO 16,15 / 9,5 T, LARGURA DE TRABALHO 1,68 M | E131: CHP | F131: 0,0030000 | G131: 159,98 | H131: =ROUNDDOWN(F131*G131,2) -> 0.47
B132: COMPOSICAO | C132: 5685 | D132: ROLO COMPACTADOR VIBRATÓRIO DE UM CILINDRO AÇO LISO, POTÊNCIA 80 HP, PESO OPERACIONAL MÁXIMO 8,1 T, IMPACTO DINÂMICO 16,15 / 9,5 T, LARGURA DE TRABALHO 1,68 M | E132: CHI | F132: 0,0230000 | G132: 69,53 | H132: 1.59
B133: COMPOSICAO | C133: 5901 | D133: CAMINHÃO PIPA 10.000 L TRUCADO, PESO BRUTO TOTAL 23.000 KG, CARGA ÚTIL MÁXIMA 15.935 KG, DISTÂNCIA ENTRE EIXOS 4,8 M, POTÊNCIA 230 CV, INCLUSIVE TANQUE DE AÇO PARA TRANSPORTE DE ÁGUA | E133: CHP | F133: 0,0040000 | G133: 294,94 | H133: 1.17
B134: COMPOSICAO | C134: 5903 | D134: CAMINHÃO PIPA 10.000 L TRUCADO, PESO BRUTO TOTAL 23.000 KG, CARGA ÚTIL MÁXIMA 15.935 KG, DISTÂNCIA ENTRE EIXOS 4,8 M, POTÊNCIA 230 CV, INCLUSIVE TANQUE DE AÇO PARA TRANSPORTE DE ÁGUA | E134: CHI | F134: 0,0220000 | G134: 72,55 | H134: 1.59
B135: COMPOSICAO | C135: 5932 | D135: MOTONIVELADORA POTÊNCIA BÁSICA LÍQUIDA (PRIMEIRA MARCHA) 125 HP, PESO BRUTO 13032 KG, LARGURA DA LÂMINA DE 3,7 M | E135: CHP | F135: 0,0080000 | G135: 262,71 | H135: 2.1
B136: COMPOSICAO | C136: 5934 | D136: MOTONIVELADORA POTÊNCIA BÁSICA LÍQUIDA (PRIMEIRA MARCHA) 125 HP, PESO BRUTO 13032 KG, LARGURA DA LÂMINA DE 3,7 M | E136: CHI | F136: 0,0190000 | G136: 109,40 | H136: 2.07
B137: COMPOSICAO | C137: 88316 | D137: SERVENTE COM ENCARGOS COMPLEMENTARES | E137: H | F137: 0,0260000 | G137: 19,76 | H137: 0.51
B138: COMPOSICAO | C138: 96463 | D138: ROLO COMPACTADOR DE PNEUS, ESTATICO, PRESSAO VARIAVEL, POTENCIA 110 HP, PESO SEM/COM LASTRO 10,8/27 T, LARGURA DE ROLAGEM 2,30 M | E138: CHP | F138: 0,0040000 | G138: 218,21 | H138: 0.87
B139: COMPOSICAO | C139: 96464 | D139: ROLO COMPACTADOR DE PNEUS, ESTATICO, PRESSAO VARIAVEL, POTENCIA 110 HP, PESO SEM/COM LASTRO 10,8/27 T, LARGURA DE ROLAGEM 2,30 M | E139: CHI | F139: 0,0220000 | G139: 95,83 | H139: 2.1
H140: 0
B141: PRODUÇÃO DA EQUIPE | E141: 1 | F141: CUSTO | H141: =SUM(H131:H140) -> 12.47
B142: TOTAL | H142: =H141/E141 -> 12.47 | I142: OK
B143: BDI % | H143: =1+$M$1 -> 1.2149
B144: TOTAL DO SERVIÇO - R$ | H144: =ROUND(H142*H143,2) -> 15.15
A146: 10 | B146: CODEVASF | E146: COMPOSIÇÃO DE PREÇO UNITÁRIO | I146: =H161 -> 1.23 | J146: =H163 -> 1.49
B147: OBRA: | C147: =$C$2 -> PAVIMENTAÇÃO ASFÁLTICA EM CBUQ E REDE DE ESGOTO URBANA - LOTEAMENTO NOVA CONQUISTA (MATUTINA / MG) - ITEM 1 | G147: DATA: | H147: =$H$2 -> SETEMBRO / 2023
B148: SERVIÇO: | C148: =VLOOKUP(A146,ORÇAMENTO!$A$10:$I$30,3) -> IMPRIMAÇÃO COM EMULSÃO ASFÁLTICA (EAI) | E148: SINAPI | F148: =VLOOKUP(A146,ORÇAMENTO!$A$10:$I$30,4) -> 96401 | G148: UNIDADE: | H148: =VLOOKUP(A146,ORÇAMENTO!$A$10:$I$30,5) -> M2
B150: TIPO ITEM | C150: CODIGO ITEM | D150: DESCRIÇÃO ITEM | E150: UNIDADE ITEM | F150: COEFICIENTE | G150: PRECO UNITARIO | H150: CUSTO TOTAL
B151: COMPOSICAO | C151: 5839 | D151: VASSOURA MECÂNICA REBOCÁVEL COM ESCOVA CILÍNDRICA, LARGURA ÚTIL DE VARRIMENTO DE 2,44 M | E151: CHP | F151: 0,0020000 | G151: 10.3 | H151: =ROUNDDOWN(F151*G151,2) -> 0.02
B152: COMPOSICAO | C152: 5841 | D152: VASSOURA MECÂNICA REBOCÁVEL COM ESCOVA CILÍNDRICA, LARGURA ÚTIL DE VARRIMENTO DE 2,44 M | E152: CHI | F152: 0,0040000 | G152: 5.18 | H152: 0.02
B153: INSUMO | C153: ANP | D153: EMULSÃO ASFÁLTICA PARA IMPRIMAÇÃO - EAI (FORNECIMENTO COM BDI DIFERENCIADO) | E153: T | F153: =1.3/1000 -> 0.0013 | H153: 0
B154: COMPOSICAO | C154: 83362 | D154: ESPARGIDOR DE ASFALTO PRESSURIZADO, TANQUE 6 M3 COM ISOLAÇÃO TÉRMICA, AQUECIDO COM 2 MAÇARICOS, COM BARRA ESPARGIDORA 3,60 M, MONTADO SOBRE CAMINHÃO TOCO, PBT 14.300 KG, POTÊNCIA 185 CV | E154: CHP | F154: 0,0010000 | G154: 256.34 | H154: 0.25
B155: COMPOSICAO | C155: 88316 | D155: SERVENTE COM ENCARGOS COMPLEMENTARES | E155: H | F155: 0,0060000 | G155: 19.76 | H155: 0.11
B156: COMPOSICAO | C156: 89035 | D156: TRATOR DE PNEUS, POTÊNCIA 85 CV, TRAÇÃO 4X4, PESO COM LASTRO DE 4.675 KG | E156: CHP | F156: 0,0020000 | G156: 135.08 | H156: 0.27
B157: COMPOSICAO | C157: 89036 | D157: TRATOR DE PNEUS, POTÊNCIA 85 CV, TRAÇÃO 4X4, PESO COM LASTRO DE 4.675 KG | E157: CHI | F157: 0,0040000 | G157: 56.48 | H157: 0.22
B158: COMPOSICAO | C158: 91486 | D158: ESPARGIDOR DE ASFALTO PRESSURIZADO, TANQUE 6 M3 COM ISOLAÇÃO TÉRMICA, AQUECIDO COM 2 MAÇARICOS, COM BARRA ESPARGIDORA 3,60 M, MONTADO SOBRE CAMINHÃO TOCO, PBT 14.300 KG, POTÊNCIA 185 CV | E158: CHI | F158: 0,0050000 | G158: 68.43 | H158: 0.34
H159: 0
B160: PRODUÇÃO DA EQUIPE | E160: 1 | F160: CUSTO | H160: =SUM(H151:H159) -> 1.23
B161: TOTAL | H161: =H160/E160 -> 1.23 | I161: OK
B162: BDI % | H162: =1+$M$1 -> 1.2149
B163: TOTAL DO SERVIÇO - R$ | H163: =ROUND(H161*H162,2) -> 1.49
A165: 11 | B165: CODEVASF | E165: COMPOSIÇÃO DE PREÇO UNITÁRIO | I165: =H180 -> 1.01 | J165: =H182 -> 1.23
B166: OBRA: | C166: =$C$2 -> PAVIMENTAÇÃO ASFÁLTICA EM CBUQ E REDE DE ESGOTO URBANA - LOTEAMENTO NOVA CONQUISTA (MATUTINA / MG) - ITEM 1 | G166: DATA: | H166: =$H$2 -> SETEMBRO / 2023
B167: SERVIÇO: | C167: =VLOOKUP(A165,ORÇAMENTO!$A$10:$I$30,3) -> PINTURA DE LIGAÇÃO COM EMULSÃO ASFÁLTICA RR-1C | E167: SINAPI | F167: =VLOOKUP(A165,ORÇAMENTO!$A$10:$I$30,4) -> 96402 | G167: UNIDADE: | H167: M2
B169: TIPO ITEM | C169: CODIGO ITEM | D169: DESCRIÇÃO ITEM | E169: UNIDADE ITEM | F169: COEFICIENTE | G169: PRECO UNITARIO | H169: CUSTO TOTAL
B170: COMPOSICAO | C170: 5839 | D170: VASSOURA MECÂNICA REBOCÁVEL COM ESCOVA CILÍNDRICA, LARGURA ÚTIL DE VARRIMENTO DE 2,44 M | E170: CHP | F170: 0,0020000 | G170: 10.3 | H170: =ROUNDDOWN(F170*G170,2) -> 0.02
B171: COMPOSICAO | C171: 5841 | D171: VASSOURA MECÂNICA REBOCÁVEL COM ESCOVA CILÍNDRICA, LARGURA ÚTIL DE VARRIMENTO DE 2,44 M | E171: CHI | F171: 0,0040000 | G171: 5.18 | H171: 0.02
B172: INSUMO | C172: 41903 | D172: EMULSAO ASFALTICA CATIONICA RR-2C PARA USO EM PAVIMENTACAO ASFALTICA (FORNECIMENTO COM BDI DIFERENCIADO) | E172: KG | F172: 0,4500000 | H172: 0
B173: COMPOSICAO | C173: 83362 | D173: ESPARGIDOR DE ASFALTO PRESSURIZADO, TANQUE 6 M3 COM ISOLAÇÃO TÉRMICA, AQUECIDO COM 2 MAÇARICOS, COM BARRA ESPARGIDORA 3,60 M, MONTADO SOBRE CAMINHÃO TOCO, PBT 14.300 KG, POTÊNCIA 185 CV | E173: CHP | F173: 0,0004000 | G173: 256.34 | H173: 0.1
B174: COMPOSICAO | C174: 88316 | D174: SERVENTE COM ENCARGOS COMPLEMENTARES | E174: H | F174: 0,0055000 | G174: 19.76 | H174: 0.1
B175: COMPOSICAO | C175: 89035 | D175: TRATOR DE PNEUS, POTÊNCIA 85 CV, TRAÇÃO 4X4, PESO COM LASTRO DE 4.675 KG | E175: CHP | F175: 0,0017000 | G175: 135.08 | H175: 0.22
B176: COMPOSICAO | C176: 89036 | D176: TRATOR DE PNEUS, POTÊNCIA 85 CV, TRAÇÃO 4X4, PESO COM LASTRO DE 4.675 KG | E176: CHI | F176: 0,0038000 | G176: 56.48 | H176: 0.21
B177: COMPOSICAO | C177: 91486 | D177: ESPARGIDOR DE ASFALTO PRESSURIZADO, TANQUE 6 M3 COM ISOLAÇÃO TÉRMICA, AQUECIDO COM 2 MAÇARICOS, COM BARRA ESPARGIDORA 3,60 M, MONTADO SOBRE CAMINHÃO TOCO, PBT 14.300 KG, POTÊNCIA 185 CV | E177: CHI | F177: 0,0051000 | G177: 68.43 | H177: 0.34
H178: 0
B179: PRODUÇÃO DA EQUIPE | E179: 1 | F179: CUSTO | H179: =SUM(H170:H178) -> 1.01
B180: TOTAL | H180: =H179/E179 -> 1.01 | I180: OK
B181: BDI % | H181: =1+$M$1 -> 1.2149
B182: TOTAL DO SERVIÇO - R$ | H182: =ROUND(H180*H181,2) -> 1.23
A184: 12 | B184: CODEVASF | E184: COMPOSIÇÃO DE PREÇO UNITÁRIO | I184: =H202 -> 129.6 | J184: =H204 -> 157.45
B185: OBRA: | C185: =$C$2 -> PAVIMENTAÇÃO ASFÁLTICA EM CBUQ E REDE DE ESGOTO URBANA - LOTEAMENTO NOVA CONQUISTA (MATUTINA / MG) - ITEM 1 | G185: DATA: | H185: =$H$2 -> SETEMBRO / 2023
B186: SERVIÇO: | C186: =VLOOKUP(A184,ORÇAMENTO!$A$10:$I$30,3) -> EXECUÇÃO DE PAVIMENTO COM APLICAÇÃO DE CONCRETO ASFÁLTICO USINADO A QUENTE (CBUQ), CAMADA DE ROLAMENTO - EXCLUSIVE TRANSPORTE | E186: SINAPI | F186: =VLOOKUP(A184,ORÇAMENTO!$A$10:$I$30,4) -> 95995 | G186: UNIDADE: | H186: =VLOOKUP(A184,ORÇAMENTO!$A$10:$I$30,5) -> M3
B188: TIPO ITEM | C188: CODIGO ITEM | D188: DESCRIÇÃO ITEM | E188: UNIDADE ITEM | F188: COEFICIENTE | G188: PRECO UNITARIO | H188: CUSTO TOTAL
B189: INSUMO | C189: 1518 | D189: CONCRETO BETUMINOSO USINADO A QUENTE (CBUQ) PARA PAVIMENTACAO ASFALTICA, PADRAO DNIT, FAIXA C, COM CAP 50/70 - AQUISICAO POSTO USINA (FORNECIMENTO COM BDI DIFERENCIADO) | E189: T | F189: 2,5548000 | H189: =ROUNDDOWN(F189*G189,2) -> 0
B190: COMPOSICAO | C190: 5835 | D190: VIBROACABADORA DE ASFALTO SOBRE ESTEIRAS, LARGURA DE PAVIMENTAÇÃO 1,90 M A 5,30 M, POTÊNCIA 105 HP CAPACIDADE 450 T/H | E190: CHP | F190: 0,0464000 | G190: 396,75 | H190: 18.4
B191: COMPOSICAO | C191: 5837 | D191: VIBROACABADORA DE ASFALTO SOBRE ESTEIRAS, LARGURA DE PAVIMENTAÇÃO 1,90 M A 5,30 M, POTÊNCIA 105 HP CAPACIDADE 450 T/H | E191: CHI | F191: 0,0949000 | G191: 165,12 | H191: 15.66
B192: COMPOSICAO | C192: 88314 | D192: RASTELEIRO COM ENCARGOS COMPLEMENTARES | E192: H | F192: 1,1301000 | G192: 26,52 | H192: 29.97
B193: COMPOSICAO | C193: 91386 | D193: CAMINHÃO BASCULANTE 10 M3, TRUCADO CABINE SIMPLES, PESO BRUTO TOTAL 23.000 KG, CARGA ÚTIL MÁXIMA 15.935 KG, DISTÂNCIA ENTRE EIXOS 4,80 M, POTÊNCIA 230 CV INCLUSIVE CAÇAMBA METÁLICA | E193: CHP | F193: 0,0464000 | G193: 252,13 | H193: 11.69
B194: COMPOSICAO | C194: 95631 | D194: ROLO COMPACTADOR VIBRATORIO TANDEM, ACO LISO, POTENCIA 125 HP, PESO SEM/COM LASTRO 10,20/11,65 T, LARGURA DE TRABALHO 1,73 M | E194: CHP | F194: 0,0805000 | G194: 228,02 | H194: 18.35
B195: COMPOSICAO | C195: 95632 | D195: ROLO COMPACTADOR VIBRATORIO TANDEM, ACO LISO, POTENCIA 125 HP, PESO SEM/COM LASTRO 10,20/11,65 T, LARGURA DE TRABALHO 1,73 M | E195: CHI | F195: 0,0607000 | G195: 89,32 | H195: 5.42
B196: COMPOSICAO | C196: 96155 | D196: TRATOR DE PNEUS COM POTÊNCIA DE 85 CV, TRAÇÃO 4X4, COM VASSOURA MECÂNICA ACOPLADA | E196: CHI | F196: 0,1071000 | G196: 61,42 | H196: 6.57
B197: COMPOSICAO | C197: 96157 | D197: TRATOR DE PNEUS COM POTÊNCIA DE 85 CV, TRAÇÃO 4X4, COM VASSOURA MECÂNICA ACOPLADA | E197: CHP | F197: 0,0341000 | G197: 144,29 | H197: 4.92
B198: COMPOSICAO | C198: 96463 | D198: ROLO COMPACTADOR DE PNEUS, ESTATICO, PRESSAO VARIAVEL, POTENCIA 110 HP, PESO SEM/COM LASTRO 10,8/27 T, LARGURA DE ROLAGEM 2,30 M | E198: CHP | F198: 0,0419000 | G198: 218,21 | H198: 9.14
B199: COMPOSICAO | C199: 96464 | D199: ROLO COMPACTADOR DE PNEUS, ESTATICO, PRESSAO VARIAVEL, POTENCIA 110 HP, PESO SEM/COM LASTRO 10,8/27 T, LARGURA DE ROLAGEM 2,30 M | E199: CHI | F199: 0,0990000 | G199: 95,83 | H199: 9.48
H200: 0
B201: PRODUÇÃO DA EQUIPE | E201: 1 | F201: CUSTO | H201: =SUM(H189:H200) -> 129.6
B202: TOTAL | H202: =H201/E201 -> 129.6 | I202: OK
B203: BDI % | H203: =1+$M$1 -> 1.2149
B204: TOTAL DO SERVIÇO - R$ | H204: =ROUND(H202*H203,2) -> 157.45
A206: 13 | B206: CODEVASF | E206: COMPOSIÇÃO DE PREÇO UNITÁRIO | I206: =H215 -> 0.73 | J206: =H217 -> 0.89
B207: OBRA: | C207: =$C$2 -> PAVIMENTAÇÃO ASFÁLTICA EM CBUQ E REDE DE ESGOTO URBANA - LOTEAMENTO NOVA CONQUISTA (MATUTINA / MG) - ITEM 1 | G207: DATA: | H207: =$H$2 -> SETEMBRO / 2023
B208: SERVIÇO: | C208: =VLOOKUP(A206,ORÇAMENTO!$A$10:$I$30,3) -> TRANSPORTE COM CAMINHÃO BASCULANTE, EM VIA URBANA PAVIMENTADA | E208: SINAPI | F208: =VLOOKUP(A206,ORÇAMENTO!$A$10:$I$30,4) -> 95427 | G208: UNIDADE: | H208: =VLOOKUP(A206,ORÇAMENTO!$A$10:$I$30,5) -> M3XKM
B210: TIPO ITEM | C210: CODIGO ITEM | D210: DESCRIÇÃO ITEM | E210: UNIDADE ITEM | F210: COEFICIENTE | G210: PRECO UNITARIO | H210: CUSTO TOTAL
B211: COMPOSICAO | C211: 89883 | D211: CAMINHÃO BASCULANTE 18 M3, COM CAVALO MECÂNICO DE CAPACIDADE MÁXIMA DE TRAÇÃO COMBINADO DE 45000 KG, POTÊNCIA 330 CV, INCLUSIVE SEMIREBOQUE COM CAÇAMBA METÁLICA | E211: CHP | F211: 0,0019000 | G211: 348.45 | H211: =ROUNDDOWN(F211*G211,2) -> 0.66
B212: COMPOSICAO | C212: 89884 | D212: CAMINHÃO BASCULANTE 18 M3, COM CAVALO MECÂNICO DE CAPACIDADE MÁXIMA DE TRAÇÃO COMBINADO DE 45000 KG, POTÊNCIA 330 CV, INCLUSIVE SEMIREBOQUE COM CAÇAMBA METÁLICA | E212: CHI | F212: 0,0008000 | G212: 93.65 | H212: =ROUNDDOWN(F212*G212,2) -> 0.07
H213: =ROUNDDOWN(F213*G213,2) -> 0
B214: PRODUÇÃO DA EQUIPE | E214: 1 | F214: CUSTO | H214: =SUM(H211:H213) -> 0.73
B215: TOTAL | H215: =H214/E214 -> 0.73 | I215: OK
B216: BDI % | H216: =1+$M$1 -> 1.2149
B217: TOTAL DO SERVIÇO - R$ | H217: =ROUND(H215*H216,2) -> 0.89
A219: 14 | B219: CODEVASF | E219: COMPOSIÇÃO DE PREÇO UNITÁRIO | I219: =H228 -> 1.03 | J219: =H230 -> 1.25
B220: OBRA: | C220: =$C$2 -> PAVIMENTAÇÃO ASFÁLTICA EM CBUQ E REDE DE ESGOTO URBANA - LOTEAMENTO NOVA CONQUISTA (MATUTINA / MG) - ITEM 1 | G220: DATA: | H220: =$H$2 -> SETEMBRO / 2023
B221: SERVIÇO: | C221: =VLOOKUP(A219,ORÇAMENTO!$A$10:$I$30,3) -> TRANSPORTE COM CAMINHÃO CARROCERIA 9T, EM VIA URBANA PAVIMENTADA | E221: SINAPI | F221: =VLOOKUP(A219,ORÇAMENTO!$A$10:$I$30,4) -> 100947 | G221: UNIDADE: | H221: =VLOOKUP(A219,ORÇAMENTO!$A$10:$I$30,5) -> TXKM
B223: TIPO ITEM | C223: CODIGO ITEM | D223: DESCRIÇÃO ITEM | E223: UNIDADE ITEM | F223: COEFICIENTE | G223: PRECO UNITARIO | H223: CUSTO TOTAL
B224: COMPOSICAO | C224: 5824 | D224: CAMINHÃO TOCO, PBT 16.000 KG, CARGA ÚTIL MÁX. 10.685 KG, DIST. ENTRE EIXOS 4,8 M, POTÊNCIA 189 CV, INCLUSIVE CARROCERIA FIXA ABERTA DE MADEIRA P/ TRANSPORTE GERAL DE CARGA SECA, DIMEN. APROX. 2,5 X 7,00 X 0,50 M | E224: CHP | F224: 0.0039 | G224: 202.74 | H224: =ROUNDDOWN(F224*G224,2) -> 0.79
B225: COMPOSICAO | C225: 5826 | D225: CAMINHÃO TOCO, PBT 16.000 KG, CARGA ÚTIL MÁX. 10.685 KG, DIST. ENTRE EIXOS 4,8 M, POTÊNCIA 189 CV, INCLUSIVE CARROCERIA FIXA ABERTA DE MADEIRA P/ TRANSPORTE GERAL DE CARGA SECA, DIMEN. APROX. 2,5 X 7,00 X 0,50 M | E225: CHI | F225: 0,0040000 | G225: 60.95 | H225: =ROUNDDOWN(F225*G225,2) -> 0.24
H226: =ROUNDDOWN(F226*G226,2) -> 0
B227: PRODUÇÃO DA EQUIPE | E227: 1 | F227: CUSTO | H227: =SUM(H224:H226) -> 1.03
B228: TOTAL | H228: =H227/E227 -> 1.03 | I228: OK
... 249 more rows

Sheet BDI SERV
B1: DETALHAMENTO DO BDI - SERVIÇOS
B4: Item | C4: Descrição dos Serviços | D4: % | E4: %
D5: PV | E5: CD
B7: 1 | C7: ADMINISTRAÇÃO CENTRAL | E7: 4.01
B8: 1.1 | C8: ESCRITÓRIO CENTRAL
B9: 1.2 | C9: VIAGENS
B10: 1.3 | C10: OUTROS
B12: 2 | C12: IMPOSTOS E TAXAS | D12: =SUM(D13:D16) -> 5.65 | E12: =SUM(E13:E16) -> 7.06
B13: 2.1 | C13: ISS (*) | D13: 2 | E13: =ROUND(D13*1.2515,2) -> 2.5
B14: 2.2 | C14: PIS | D14: 0.65 | E14: =ROUND(D14*1.2515,2) -> 0.81
B15: 2.3 | C15: Cofins | D15: 3 | E15: =ROUND(D15*1.2515,2) -> 3.75
B16: 2.4 | C16: CONTRIBUIÇÃO PREVIDENCIÁRIA SOBRE A RENDA BRUTA | D16: 0 | E16: =ROUND(D16*1.2515,2) -> 0
B18: 3 | C18: TAXA DE RISCO | E18: =SUM(E19:E22) -> 0.96
B19: 3.1 | C19: SEGURO | E19: 0.2
B20: 3.2 | C20: RISCO | E20: 0.56
B21: 3.3 | C21: GARANTIA | E21: 0.2
T22: =1/0.82 -> 1.219512195
B23: 4 | C23: DESPESAS FINANCEIRAS | E23: 1.11
B25: 5 | C25: LUCRO | E25: 8
C27: BDI - CALCULADO | E27: =ROUND((((1+(E7+E18)/100)*(1+E23/100)*(1+E25/100)/(1-D12/100)-1)*100),2) -> 21.49
A29: BDI = ((1+((AC+S+R+G)/100))x(1+DF/100)x(1+L/100)/(1-I/100)-1)*100
B31: BDI (CALCULADO): | D31: =ROUND((((1+((E7+E18)/100))*(1+E23/100)*(1+E25/100))/(1-D12/100)-1)*100,2) -> 21.49 | E31: %
A33: (*) ISS CONFORME LEI MUNICIPAL COMPLEMENTAR Nº 731/2002
A37: BDI EM CONFORMIDADE COM OS ACÓRDÃOS Nº 2369/2011 e ACÓRDÃO Nº 2.622/2013 - TCU - PLENÁRIO

Sheet BDI FORN
B1: DETALHAMENTO DO BDI - FORNECIMENTO (MATERIAL ASFÁLTICO)
B4: Item | C4: Descrição dos Serviços | D4: % | E4: %
D5: PV | E5: CD
B7: 1 | C7: ADMINISTRAÇÃO CENTRAL | E7: 3.72
B8: 1.1 | C8: ESCRITÓRIO CENTRAL
B9: 1.2 | C9: VIAGENS
B10: 1.3 | C10: OUTROS
B12: 2 | C12: IMPOSTOS E TAXAS | D12: =SUM(D13:D16) -> 3.65 | E12: =SUM(E13:E16) -> 4.56
B13: 2.1 | C13: ISS (*) | E13: =ROUND(D13*1.2515,2) -> 0
B14: 2.2 | C14: PIS | D14: 0.65 | E14: =ROUND(D14*1.2515,2) -> 0.81
B15: 2.3 | C15: Cofins | D15: 3 | E15: =ROUND(D15*1.2515,2) -> 3.75
B16: 2.4 | C16: CONTRIBUIÇÃO PREVIDENCIÁRIA SOBRE A RENDA BRUTA | D16: 0 | E16: =ROUND(D16*1.2515,2) -> 0
B18: 3 | C18: TAXA DE RISCO | E18: =SUM(E19:E22) -> 0.82
B19: 3.1 | C19: SEGURO | E19: 0.16
B20: 3.2 | C20: RISCO | E20: 0.5
B21: 3.3 | C21: GARANTIA | E21: 0.16
B23: 4 | C23: DESPESAS FINANCEIRAS | E23: 0.94
B25: 5 | C25: LUCRO | E25: 5
C27: BDI - CALCULADO | E27: =ROUND((((1+(E7+E18)/100)*(1+E23/100)*(1+E25/100)/(1-D12/100)-1)*100),2) -> 15
A29: BDI = ((1+((AC+S+R+G)/100))x(1+DF/100)x(1+L/100)/(1-I/100)-1)*100
B31: BDI (CALCULADO): | D31: =ROUND((((1+((E7+E18)/100))*(1+E23/100)*(1+E25/100))/(1-D12/100)-1)*100,2) -> 15 | E31: %
A37: BDI EM CONFORMIDADE COM OS ACÓRDÃOS Nº 2369/2011 e ACÓRDÃO Nº 2.622/2013 - TCU - PLENÁRIO

Sheet CRONOGRAMA
B1: CRONOGRAMA FÍSICO-FINANCEIRO
B2: OBRA: | C2: =ORÇAMENTO!C5 -> PAVIMENTAÇÃO ASFÁLTICA EM CBUQ E REDE DE ESGOTO URBANA - LOTEAMENTO NOVA CONQUISTA (MATUTINA / MG) - ITEM 1 | F2: VALOR: | G2: =ORÇAMENTO!I47 -> 2063405.01
F3: PRAZO: | G3: 180 DIAS
B5: ITEM | C5: ETAPAS/DESCRIÇAO | D5: FISICO/ FINANCEIRO | E5: TOTAL ETAPAS | F5: MÊS 1 | G5: MÊS 2 | H5: MÊS 3 | I5: MÊS 4 | J5: MÊS 5 | K5: MÊS 6 | L5: TOTAL
A6: A | B6: =VLOOKUP(A6,ORÇAMENTO!$A$9:$I$47,2) -> 1 | C6: =VLOOKUP(A6,ORÇAMENTO!$A$9:$I$47,3) -> SERVIÇOS PRELIMINARES | D6: FISICO | E6: =ROUND(E7/$G$2,4) -> 0.0928 | F6: 0.1 | G6: 0.2 | H6: 0.2 | I6: 0.2 | J6: 0.2 | K6: 0.1 | L6: =SUM(F6:K6) -> 1
D7: FINANCEIRO | E7: =ORÇAMENTO!I9 -> 191531.46 | F7: =ROUND($E$7*F6,2) -> 19153.15 | G7: =ROUND($E$7*G6,2) -> 38306.29 | H7: =ROUND($E$7*H6,2) -> 38306.29 | I7: =ROUND($E$7*I6,2) -> 38306.29 | J7: 38306.29 | K7: =ROUND($E$7*K6,2) -> 19153.15 | L7: =SUM(F7:K7) -> 191531.46
A8: B | B8: =VLOOKUP(A8,ORÇAMENTO!$A$9:$I$47,2) -> 2 | C8: =VLOOKUP(A8,ORÇAMENTO!$A$9:$I$47,3) -> PAVIMENTAÇÃO | D8: FISICO | E8: =ROUND(E9/$G$2,4) -> 0.112 | F8: 0 | G8: 0 | H8: 0.25 | I8: 0.25 | J8: 0.25 | K8: 0.25 | L8: =SUM(F8:K8) -> 1
D9: FINANCEIRO | E9: =ORÇAMENTO!I15 -> 231125.5 | F9: =ROUND($E$9*F8,2) -> 0 | G9: =ROUND($E$9*G8,2) -> 0 | H9: =ROUND($E$9*H8,2) -> 57781.38 | I9: 57781.38 | J9: 57781.38 | K9: 57781.38 | L9: =SUM(F9:K9) -> 231125.52
A10: C | B10: =VLOOKUP(A10,ORÇAMENTO!$A$9:$I$47,2) -> 3 | C10: =VLOOKUP(A10,ORÇAMENTO!$A$9:$I$47,3) -> TRANSPORTE DE MATERIAIS | D10: FISICO | E10: =ROUND(E11/$G$2,4) -> 0.0314 | F10: 0.1 | G10: 0.2 | H10: 0.2 | I10: 0.2 | J10: 0.2 | K10: 0.1 | L10: =SUM(F10:K10) -> 1
D11: FINANCEIRO | E11: =ORÇAMENTO!I23 -> 64800 | F11: =ROUND($E$11*F10,2) -> 6480 | G11: =ROUND($E$11*G10,2) -> 12960 | H11: =ROUND($E$11*H10,2) -> 12960 | I11: =ROUND($E$11*I10,2) -> 12960 | J11: 12960 | K11: =ROUND($E$11*K10,2) -> 6480 | L11: =SUM(F11:K11)-0.04 -> 64799.96
A12: D | B12: =VLOOKUP(A12,ORÇAMENTO!$A$9:$I$47,2) -> 4 | C12: =VLOOKUP(A12,ORÇAMENTO!$A$9:$I$47,3) -> TRANSPORTE DE MATERIAL ASFÁLTICO (BDI DIFERENCIADO) | D12: FISICO | E12: =ROUND(E13/$G$2,4) -> 0.0423 | F12: 0 | G12: 0 | H12: 0.25 | I12: 0.25 | J12: 0.25 | K12: 0.25 | L12: =SUM(F12:K12) -> 1
D13: FINANCEIRO | E13: =ORÇAMENTO!I26 -> 87240 | F13: =ROUND($E$13*F12,2) -> 0 | G13: =ROUND($E$13*G12,2) -> 0 | H13: =ROUND($E$13*H12,2) -> 21810 | I13: =ROUND($E$13*I12,2) -> 21810 | J13: 21810 | K13: =ROUND($E$13*K12,2) -> 21810 | L13: =SUM(F13:K13)-0.02 -> 87239.98
A14: E | B14: =VLOOKUP(A14,ORÇAMENTO!$A$9:$I$47,2) -> 5 | C14: =VLOOKUP(A14,ORÇAMENTO!$A$9:$I$47,3) -> DRENAGEM E OBRAS COMPLEMENTARES | D14: FISICO | E14: =ROUND(E15/$G$2,4) -> 0.3968 | F14: 0.3 | G14: 0.3 | H14: 0.1 | I14: 0.1 | J14: 0.1 | K14: 0.1 | L14: =SUM(F14:K14) -> 1
D15: FINANCEIRO | E15: =ORÇAMENTO!I29 -> 818703.4 | F15: =ROUND($E$15*F14,2) -> 245611.02 | G15: =ROUND($E$15*G14,2) -> 245611.02 | H15: =ROUND($E$15*H14,2) -> 81870.34 | I15: =ROUND($E$15*I14,2) -> 81870.34 | J15: 81870.34 | K15: =ROUND($E$15*K14,2) -> 81870.34 | L15: =SUM(F15:K15)-0.02 -> 818703.38
A16: F | B16: =VLOOKUP(A16,ORÇAMENTO!$A$9:$I$47,2) -> 6 | C16: =VLOOKUP(A16,ORÇAMENTO!$A$9:$I$47,3) -> FORNECIMENTOS - MATERIAL ASFÁLTICO (BDI DIFERENCIADO) | D16: FISICO | E16: =ROUND(E17/$G$2,4) -> 0.3247 | F16: 0 | G16: 0 | H16: 0.25 | I16: 0.25 | J16: 0.25 | K16: 0.25 | L16: =SUM(F16:K16) -> 1
D17: FINANCEIRO | E17: =ORÇAMENTO!I43 -> 670004.65 | F17: =ROUND($E$17*F16,2) -> 0 | G17: =ROUND($E$17*G16,2) -> 0 | H17: =ROUND($E$17*H16,2) -> 167501.16 | I17: =ROUND($E$17*I16,2) -> 167501.16 | J17: 167501.16 | K17: =ROUND($E$17*K16,2) -> 167501.16 | L17: =SUM(F17:K17)-0.02 -> 670004.62
B18: TOTAL | D18: FISICO | E18: =SUM(F18:K18) -> 1.000000005 | F18: =F19/$E$19 -> 0.1314546435 | G18: =G19/$E$19 -> 0.1438773816 | H18: =H19/$E$19 -> 0.1842726795 | I18: =I19/$E$19 -> 0.1842726795 | J18: 0.1842726795 | K18: =K19/$E$19 -> 0.1718499414 | L18: =SUM(F18:K18) -> 1.000000005
D19: FINANCEIRO | E19: =E11+E9+E7+E13+E17+E15 -> 2063405.01 | F19: =F11+F9+F7+F13+F17+F15 -> 271244.17 | G19: =G11+G9+G7+G13+G17+G15 -> 296877.31 | H19: =H11+H9+H7+H13+H17+H15 -> 380229.17 | I19: =I11+I9+I7+I13+I17+I15 -> 380229.17 | J19: 380229.17 | K19: =K11+K9+K7+K13+K17+K15 -> 354596.03 | L19: =SUM(F19:K19)-0.01 -> 2063405.01
B21: OBSERVAÇÕES:
